[Event "44th Chess Olympiad Women 2022"]
[Site "Chennai"]
[Date "2022.08.07"]
[Round "9.43"]
[White "Cooke, Suzie G."]
[Black "Miller, Rachel"]
[Result "1-0"]
[WhiteElo "1936"]
[BlackElo "1961"]
[Annotator "NA"]
[PlyCount "95"]
[EventDate "2022.??.??"]
[TimeControl "60"]

1. d4 {[%emt 0:00:03]} d5 {[%emt 0:00:18]} 2. Bf4 {[%emt 0:00:08]} c5 {[%emt 0:
00:00]} 3. e3 {[%emt 0:00:28]} Nc6 {[%emt 0:00:23]} 4. Nf3 {[%emt 0:02:25]} Nf6
{[%emt 0:01:00]} 5. Nbd2 {[%emt 0:00:38]} Qb6 {[%emt 0:00:59]} 6. dxc5 {
[%emt 0:01:14]} Qxb2 {[%emt 0:00:30]} 7. Rb1 {[%emt 0:00:39]} Qc3 {[%emt 0:00:
00]} 8. Bb5 {[%emt 0:00:55]} g6 {[%emt 0:00:26]} 9. O-O {[%emt 0:02:08]} Bg7 {
[%emt 0:04:22]} 10. Nb3 {[%emt 0:04:18]} O-O {[%emt 0:02:37]} 11. Nfd4 {
[%emt 0:21:11]} Bd7 {[%emt 0:10:24]} 12. Bd3 {[%emt 0:12:32]} Nxd4 {[%emt 0:00:
00]} 13. exd4 {[%emt 0:00:19]} Ne4 {[%emt 0:00:26]} 14. Re1 {[%emt 0:03:10]} e5
{[%emt 0:43:03]} 15. dxe5 {[%emt 0:09:39]} Ba4 {[%emt 0:06:28]} 16. Bxe4 {
[%emt 0:11:53]} dxe4 {[%emt 0:00:40]} 17. Rxe4 {[%emt 0:00:38]} Bxb3 {[%emt 0:
00:00]} 18. Rxb3 {[%emt 0:02:19]} Qxc5 {[%emt 0:00:30]} 19. Rxb7 {[%emt 0:00:
00]} Rfd8 {[%emt 0:01:45]} 20. Qb1 {[%emt 0:03:11]} Rac8 {[%emt 0:05:49]} 21.
h4 {[%emt 0:02:16]} Qxc2 {[%emt 0:03:21]} 22. Qxc2 {[%emt 0:00:13]} Rxc2 {
[%emt 0:00:09]} 23. Rxa7 {[%emt 0:00:36]} h6 {[%emt 0:01:09]} 24. e6 {[%emt 0:
00:00]} fxe6 {[%emt 0:01:09]} 25. Rxe6 {[%emt 0:00:09]} g5 {[%emt 0:02:51]} 26.
hxg5 {[%emt 0:02:12]} Rd1+ {[%emt 0:00:13]} 27. Kh2 {[%emt 0:00:20]} Rxf2 {
[%emt 0:00:17]} 28. gxh6 {[%emt 0:04:13]} Rxf4 {[%emt 0:00:22]} 29. hxg7 {
[%emt 0:00:23]} Rf7 {[%emt 0:01:08]} 30. Ree7 {[%emt 0:00:54]} Rxe7 {[%emt 0:
00:00]} 31. Rxe7 {[%emt 0:00:04]} Rd3 {[%emt 0:00:10]} 32. a4 {[%emt 0:00:24]}
Rd5 {[%emt 0:00:19]} 33. Ra7 {[%emt 0:00:09]} Rh5+ {[%emt 0:00:21]} 34. Kg1 {
[%emt 0:00:21]} Rf5 {[%emt 0:00:24]} 35. a5 {[%emt 0:00:09]} Rb5 {[%emt 0:00:
00]} 36. a6 {[%emt 0:00:13]} Ra5 {[%emt 0:00:06]} 37. Kh2 {[%emt 0:00:15]} Ra3
{[%emt 0:00:06]} 38. g3 {[%emt 0:00:23]} Kh7 {[%emt 0:00:19]} 39. Kh3 {[%emt 0:
00:00]} Kg8 {[%emt 0:00:19]} 40. Kg4 {[%emt 0:01:32]} Ra5 {[%emt 0:00:06]} 41.
Kf4 {[%emt 0:30:52]} Kh7 {[%emt 0:30:07]} 42. Kg4 {[%emt 0:00:37]} Kg8 {
[%emt 0:00:07]} 43. Kh4 {[%emt 0:03:02]} Kh7 {[%emt 0:00:12]} 44. g4 {[%emt 0:
00:00]} Kg8 {[%emt 0:00:06]} 45. g5 {[%emt 0:00:22]} Rb5 {[%emt 0:00:54]} 46.
Rb7 {[%emt 0:00:19]} Ra5 {[%emt 0:00:15]} 47. a7 {[%emt 0:00:04]} Ra1 {[%emt 0:
00:00]} 48. Rb8+ {[%emt 0:00:08]} 1-0

[Event "44th Chess Olympiad Women 2022"]
[Site "Chennai"]
[Date "2022.08.07"]
[Round "9.43"]
[White "Hughes, Rhian"]
[Black "Curwin, Nickaylah"]
[Result "1-0"]
[WhiteElo "1843"]
[BlackElo "1499"]
[Annotator "NA RC"]
[PlyCount "75"]
[EventDate "2022.??.??"]
[TimeControl "60"]

1. c4 {[%emt 0:00:02]} c6 {[%emt 0:00:11]} 2. Nc3 {[%emt 0:00:09]} d5 {[%emt 0:
00:00]} 3. cxd5 {[%emt 0:00:45]} cxd5 {[%emt 0:00:12]} 4. d4 {[%emt 0:00:27]}
Nf6 {[%emt 0:00:28]} 5. Nf3 {[%emt 0:05:05]} Nc6 {[%emt 0:02:39]} 6. e3 {
[%emt 0:01:20]} Bg4 {[%emt 0:00:35]} 7. Be2 {[%emt 0:00:44]} e6 {[%emt 0:00:44]
} 8. O-O {[%emt 0:01:01]} a6 {[%emt 0:02:28]} 9. b3 {[%emt 0:10:59]} Bd6 {
[%emt 0:01:16]} 10. h3 {[%emt 0:05:26]} Bh5 {[%emt 0:00:39]} 11. Bb2 {[%emt 0:
00:00]} O-O {[%emt 0:01:22]} 12. Rc1 {[%emt 0:01:46]} Rc8 {[%emt 0:05:48]} 13.
Ne1 {[%emt 0:07:11]} Bxe2 {[%emt 0:02:26]} 14. Qxe2 {[%emt 0:00:13]} Qe7 {
[%emt 0:01:59]} 15. Nd3 {[%emt 0:01:23]} Rc7 {[%emt 0:04:10]} 16. Na4 {[%emt 0:
00:00]} Nd7 {[%emt 0:06:43]} 17. Rc2 {[%emt 0:03:18]} Rfc8 {[%emt 0:06:53]} 18.
Rfc1 {[%emt 0:00:20]} e5 {[%emt 0:05:28]} 19. dxe5 {[%emt 0:02:01]} Ndxe5 {
[%emt 0:00:11]} 20. Nb6 {[%emt 0:00:51]} Nxd3 {[%emt 0:08:39]} 21. Nxc8 {
[%emt 0:02:10]} Rxc8 {[%emt 0:00:37]} 22. Qxd3 {[%emt 0:00:09]} Re8 {[%emt 0:
00:00]} 23. Bc3 {[%emt 0:06:48]} Qg5 {[%emt 0:11:04]} 24. Rd1 {[%emt 0:02:23]}
Ne7 {[%emt 0:06:21]} 25. Rcd2 {[%emt 0:04:23]} Rc8 {[%emt 0:05:02]} 26. Bb2 {
[%emt 0:05:49]} Rd8 {[%emt 0:05:37]} 27. Qe2 {[%emt 0:02:14]} Qh6 {[%emt 0:00:
00]} 28. a3 {[%emt 0:01:23]} Bc7 {[%emt 0:00:56]} 29. e4 {[%emt 0:03:46]} Qf4 {
[%emt 0:02:20]} 30. g3 {[%emt 0:00:13]} Qh6 {[%emt 0:03:15]} 31. Kh2 {[%emt 0:
00:00]} f5 {[%emt 0:05:20]} 32. exd5 {[%emt 0:00:53]} Kf8 {[%emt 0:04:25]} 33.
Be5 {[%emt 0:05:13]} Bb6 {[%emt 0:01:20]} 34. d6 {[%emt 0:00:50]} Ng6 {[%emt 0:
00:00]} 35. d7 {[%emt 0:02:13]} Bc5 {[%emt 0:01:26]} 36. Bc7 {[%emt 0:00:35]}
Be7 {[%emt 0:00:34]} 37. Bxd8 {[%emt 0:00:08]} Bxd8 {[%emt 0:00:03]} 38. Qe8# {
[%emt 0:00:39]} 1-0

[Event "44th Chess Olympiad Women 2022"]
[Site "Chennai"]
[Date "2022.08.07"]
[Round "9.43"]
[White "Watson, Gabriella"]
[Black "Reid, Caitlin"]
[Result "1-0"]
[WhiteElo "1164"]
[BlackElo "1437"]
[Annotator "NA"]
[PlyCount "139"]
[EventDate "2022.??.??"]
[TimeControl "60"]

1. d4 {[%emt 0:00:04]} d5 {[%emt 0:00:08]} 2. Bf4 {[%emt 0:00:08]} Nf6 {
[%emt 0:01:14]} 3. e3 {[%emt 0:00:18]} Bf5 {[%emt 0:01:37]} 4. c4 {[%emt 0:00:
00]} c6 {[%emt 0:00:49]} 5. Nc3 {[%emt 0:00:21]} e6 {[%emt 0:04:44]} 6. Nf3 {
[%emt 0:01:01]} Nbd7 {[%emt 0:00:40]} 7. Be2 {[%emt 0:02:14]} h6 {[%emt 0:00:
00]} 8. O-O {[%emt 0:02:29]} g5 {[%emt 0:00:26]} 9. Bg3 {[%emt 0:00:38]} g4 {
[%emt 0:00:15]} 10. Ne5 {[%emt 0:08:53]} h5 {[%emt 0:00:38]} 11. Qb3 {[%emt 0:
00:00]} Qb6 {[%emt 0:01:24]} 12. c5 {[%emt 0:04:26]} Qxb3 {[%emt 0:01:09]} 13.
axb3 {[%emt 0:00:08]} h4 {[%emt 0:01:40]} 14. Nxd7 {[%emt 0:09:06]} Kxd7 {
[%emt 0:00:39]} 15. Be5 {[%emt 0:00:50]} Rh6 {[%emt 0:01:53]} 16. b4 {[%emt 0:
00:00]} Nh5 {[%emt 0:01:13]} 17. g3 {[%emt 0:07:31]} hxg3 {[%emt 0:01:23]} 18.
fxg3 {[%emt 0:00:41]} f6 {[%emt 0:00:34]} 19. Bf4 {[%emt 0:02:08]} Nxf4 {
[%emt 0:00:12]} 20. exf4 {[%emt 0:04:11]} Bg7 {[%emt 0:00:50]} 21. b5 {[%emt 0:
00:00]} Bg6 {[%emt 0:01:43]} 22. Ra4 {[%emt 0:10:50]} Bc2 {[%emt 0:01:36]} 23.
bxc6+ {[%emt 0:03:32]} Kxc6 {[%emt 0:01:42]} 24. Bb5+ {[%emt 0:00:53]} Kc7 {
[%emt 0:00:17]} 25. Ra3 {[%emt 0:02:11]} a6 {[%emt 0:00:52]} 26. Ba4 {[%emt 0:
00:00]} Rah8 {[%emt 0:04:01]} 27. Rf2 {[%emt 0:07:12]} Bxa4 {[%emt 0:03:48]}
28. Nxa4 {[%emt 0:00:13]} f5 {[%emt 0:00:23]} 29. Rd3 {[%emt 0:00:31]} Kc6 {
[%emt 0:01:24]} 30. Nc3 {[%emt 0:02:15]} Bf6 {[%emt 0:01:06]} 31. Re2 {[%emt 0:
00:00]} Kd7 {[%emt 0:01:28]} 32. b4 {[%emt 0:03:21]} Ra8 {[%emt 0:02:31]} 33.
Na4 {[%emt 0:00:28]} Bd8 {[%emt 0:00:48]} 34. Rc2 {[%emt 0:01:53]} Rc8 {
[%emt 0:01:31]} 35. Rdc3 {[%emt 0:01:06]} Rh8 {[%emt 0:02:44]} 36. Re2 {
[%emt 0:02:09]} Re8 {[%emt 0:04:04]} 37. Nb2 {[%emt 0:01:09]} b6 {[%emt 0:00:
00]} 38. Nd3 {[%emt 0:02:24]} bxc5 {[%emt 0:00:28]} 39. dxc5 {[%emt 0:01:08]}
Bf6 {[%emt 0:02:19]} 40. Ra3 {[%emt 0:01:26]} Bd4+ {[%emt 0:05:19]} 41. Kf1 {
[%emt 0:30:37]} Rc6 {[%emt 0:31:35]} 42. Rea2 {[%emt 0:01:08]} Rh8 {[%emt 0:00:
00]} 43. Kg2 {[%emt 0:00:00]} Rhc8 {[%emt 0:00:00]} 44. Rxa6 {[%emt 0:00:00]}
Rxa6 {[%emt 0:00:00]} 45. Rxa6 {[%emt 0:00:00]} Rc6 {[%emt 0:00:00]} 46. Ra7+ {
[%emt 0:00:00]} Rc7 {[%emt 0:00:00]} 47. Rxc7+ {[%emt 0:00:00]} Kxc7 {[%emt 0:
00:00]} 48. b5 {[%emt 0:00:00]} Kb7 {[%emt 0:00:00]} 49. h4 {[%emt 0:00:00]}
gxh3+ {[%emt 0:00:00]} 50. Kxh3 {[%emt 0:00:00]} Kc7 {[%emt 0:00:00]} 51. Kh4 {
[%emt 0:00:00]} Kd7 {[%emt 0:00:00]} 52. Kg5 {[%emt 0:00:00]} Kc7 {[%emt 0:00:
00]} 53. Kg6 {[%emt 0:00:00]} Bc3 {[%emt 0:00:00]} 54. Kf7 {[%emt 0:00:00]} Kd7
{[%emt 0:00:00]} 55. c6+ {[%emt 0:00:00]} Kd6 {[%emt 0:00:00]} 56. c7 {[%emt 0:
00:00]} Kxc7 {[%emt 0:00:00]} 57. Kxe6 {[%emt 0:00:00]} d4 {[%emt 0:00:00]} 58.
Kxf5 {[%emt 0:00:00]} Kb6 {[%emt 0:00:00]} 59. Ke5 {[%emt 0:00:00]} Kxb5 {
[%emt 0:00:00]} 60. g4 {[%emt 0:00:00]} Kc4 {[%emt 0:00:00]} 61. Ke4 {[%emt 0:
00:00]} Kb5 {[%emt 0:00:00]} 62. g5 {[%emt 0:00:00]} Kc6 {[%emt 0:00:00]} 63.
g6 {[%emt 0:00:00]} Kd6 {[%emt 0:00:00]} 64. g7 {[%emt 0:00:00]} Ke6 {[%emt 0:
00:00]} 65. g8=Q+ {[%emt 0:00:00]} Kf6 {[%emt 0:00:00]} 66. Qg5+ {[%emt 0:00:
00]} Kf7 {[%emt 0:00:00]} 67. f5 {[%emt 0:00:00]} Bd2 {[%emt 0:00:00]} 68. Qxd2
{[%emt 0:00:00]} Kf6 {[%emt 0:00:00]} 69. Kxd4 {[%emt 0:00:00]} Ke7 {[%emt 0:
00:00]} 70. Qh6 {[%emt 0:00:00]} 1-0

[Event "44th Chess Olympiad Women 2022"]
[Site "Chennai"]
[Date "2022.08.07"]
[Round "9.44"]
[White "Deng, Jing Xin Crystal"]
[Black "Almanzar Vasquez, Jeniffer Maria"]
[Result "1-0"]
[WhiteElo "1914"]
[BlackElo "1762"]
[Annotator "NA RC"]
[PlyCount "67"]
[EventDate "2022.??.??"]
[TimeControl "60"]

1. d4 {[%emt 0:00:03]} Nf6 {[%emt 0:00:17]} 2. c4 {[%emt 0:00:04]} e6 {[%emt 0:
00:00]} 3. Nf3 {[%emt 0:00:02]} Bb4+ {[%emt 0:00:40]} 4. Bd2 {[%emt 0:00:06]}
a5 {[%emt 0:01:24]} 5. g3 {[%emt 0:00:44]} b6 {[%emt 0:01:09]} 6. Bg2 {[%emt 0:
00:00]} Bb7 {[%emt 0:00:06]} 7. O-O {[%emt 0:00:15]} O-O {[%emt 0:00:43]} 8.
Nc3 {[%emt 0:06:42]} d6 {[%emt 0:00:37]} 9. Qc2 {[%emt 0:03:49]} Bxc3 {[%emt 0:
00:00]} 10. Bxc3 {[%emt 0:00:06]} Be4 {[%emt 0:03:05]} 11. Qd2 {[%emt 0:07:57]}
Nbd7 {[%emt 0:05:00]} 12. Rac1 {[%emt 0:03:42]} h6 {[%emt 0:03:54]} 13. Rfd1 {
[%emt 0:00:34]} Qb8 {[%emt 0:01:16]} 14. Ne1 {[%emt 0:03:25]} Bxg2 {[%emt 0:00:
00]} 15. Nxg2 {[%emt 0:00:10]} Ne4 {[%emt 0:04:23]} 16. Qd3 {[%emt 0:03:03]}
Ndf6 {[%emt 0:06:32]} 17. f3 {[%emt 0:04:11]} Nxc3 {[%emt 0:01:22]} 18. Rxc3 {
[%emt 0:01:38]} d5 {[%emt 0:02:22]} 19. e4 {[%emt 0:07:28]} c6 {[%emt 0:15:54]}
20. cxd5 {[%emt 0:01:10]} cxd5 {[%emt 0:02:26]} 21. e5 {[%emt 0:01:08]} Nd7 {
[%emt 0:01:35]} 22. Rdc1 {[%emt 0:00:42]} Ra7 {[%emt 0:00:54]} 23. f4 {[%emt 0:
00:00]} b5 {[%emt 0:07:48]} 24. f5 {[%emt 0:01:42]} b4 {[%emt 0:04:16]} 25. Rc6
{[%emt 0:00:19]} Re8 {[%emt 0:01:23]} 26. Nf4 {[%emt 0:15:26]} Nf8 {[%emt 0:00:
00]} 27. Qf3 {[%emt 0:07:10]} Qb5 {[%emt 0:05:40]} 28. Qg4 {[%emt 0:11:02]} Ra6
{[%emt 0:11:51]} 29. Rc7 {[%emt 0:03:17]} Qb6 {[%emt 0:00:34]} 30. R1c5 {
[%emt 0:03:13]} Qb8 {[%emt 0:02:01]} 31. Qh5 {[%emt 0:00:33]} Nd7 {[%emt 0:00:
00]} 32. Rxd7 {[%emt 0:00:11]} Rf8 {[%emt 0:00:03]} 33. fxe6 {[%emt 0:00:47]}
fxe6 {[%emt 0:02:56]} 34. Qg6 {[%emt 0:00:10]} 1-0

[Event "44th Chess Olympiad Women 2022"]
[Site "Chennai"]
[Date "2022.08.07"]
[Round "9.44"]
[White "Leung, Hoi Ting"]
[Black "Gonzalez Peguero, Mary Loly"]
[Result "0-1"]
[WhiteElo "1277"]
[BlackElo "1666"]
[Annotator "NA"]
[PlyCount "128"]
[EventDate "2022.??.??"]
[TimeControl "60"]

1. d4 {[%emt 0:00:02]} Nf6 {[%emt 0:00:21]} 2. c4 {[%emt 0:00:25]} g6 {[%emt 0:
00:00]} 3. Nf3 {[%emt 0:00:25]} Bg7 {[%emt 0:00:19]} 4. Nc3 {[%emt 0:00:43]}
O-O {[%emt 0:00:18]} 5. e4 {[%emt 0:02:06]} d6 {[%emt 0:00:12]} 6. Be2 {
[%emt 0:01:21]} e5 {[%emt 0:01:38]} 7. dxe5 {[%emt 0:02:18]} dxe5 {[%emt 0:00:
00]} 8. Qxd8 {[%emt 0:00:45]} Rxd8 {[%emt 0:00:07]} 9. Bg5 {[%emt 0:01:12]} Re8
{[%emt 0:00:24]} 10. Rd1 {[%emt 0:03:00]} Nc6 {[%emt 0:07:14]} 11. Bxf6 {
[%emt 0:04:15]} Bxf6 {[%emt 0:00:08]} 12. Nd5 {[%emt 0:01:27]} Bd8 {[%emt 0:00:
00]} 13. O-O {[%emt 0:02:39]} Bg4 {[%emt 0:00:59]} 14. h3 {[%emt 0:08:51]} Bxf3
{[%emt 0:00:23]} 15. Bxf3 {[%emt 0:00:30]} Nd4 {[%emt 0:00:11]} 16. Bg4 {
[%emt 0:03:27]} c6 {[%emt 0:03:32]} 17. Nc3 {[%emt 0:04:11]} h5 {[%emt 0:01:24]
} 18. Be2 {[%emt 0:02:45]} Ba5 {[%emt 0:02:41]} 19. Bd3 {[%emt 0:02:17]} Bxc3 {
[%emt 0:03:28]} 20. bxc3 {[%emt 0:00:20]} Ne6 {[%emt 0:00:07]} 21. Bc2 {
[%emt 0:05:15]} Rad8 {[%emt 0:03:46]} 22. Rxd8 {[%emt 0:02:14]} Rxd8 {[%emt 0:
00:00]} 23. Rd1 {[%emt 0:01:43]} Rxd1+ {[%emt 0:05:01]} 24. Bxd1 {[%emt 0:00:
00]} Kf8 {[%emt 0:00:02]} 25. Bc2 {[%emt 0:02:37]} Ke7 {[%emt 0:01:05]} 26. Bb3
{[%emt 0:11:41]} Nc5 {[%emt 0:06:09]} 27. Bc2 {[%emt 0:01:51]} Kd6 {[%emt 0:00:
00]} 28. Kf1 {[%emt 0:02:53]} Ne6 {[%emt 0:03:12]} 29. g3 {[%emt 0:09:57]} Kc5
{[%emt 0:01:33]} 30. Bd3 {[%emt 0:02:57]} Nc7 {[%emt 0:00:57]} 31. Ke2 {
[%emt 0:03:44]} Ne8 {[%emt 0:04:39]} 32. Bc2 {[%emt 0:02:28]} Nd6 {[%emt 0:00:
00]} 33. Kd3 {[%emt 0:06:06]} Nxc4 {[%emt 0:01:07]} 34. Bb3 {[%emt 0:01:29]}
Nd6 {[%emt 0:00:11]} 35. Ke3 {[%emt 0:04:17]} b5 {[%emt 0:09:44]} 36. Kd3 {
[%emt 0:03:43]} a5 {[%emt 0:00:52]} 37. a3 {[%emt 0:00:43]} Kb6 {[%emt 0:07:25]
} 38. Ba2 {[%emt 0:00:49]} c5 {[%emt 0:00:22]} 39. Bd5 {[%emt 0:00:24]} c4+ {
[%emt 0:04:44]} 40. Ke3 {[%emt 0:01:11]} Kc5 {[%emt 0:00:22]} 41. f3 {[%emt 0:
00:00]} g5 {[%emt 0:02:47]} 42. g4 {[%emt 0:02:14]} h4 {[%emt 0:00:24]} 43. Kd2
{[%emt 0:03:45]} f6 {[%emt 0:01:16]} 44. Be6 {[%emt 0:04:34]} b4 {[%emt 0:00:
00]} 45. cxb4+ {[%emt 0:04:19]} axb4 {[%emt 0:00:51]} 46. axb4+ {[%emt 0:00:38]
} Kxb4 {[%emt 0:00:08]} 47. Bd7 {[%emt 0:01:31]} Nb5 {[%emt 0:01:19]} 48. Bxb5
{[%emt 0:05:13]} Kxb5 {[%emt 0:00:07]} 49. Kc3 {[%emt 0:00:30]} Kc5 {[%emt 0:
00:00]} 50. Kc2 {[%emt 0:00:25]} Kd4 {[%emt 0:00:21]} 51. Kd2 {[%emt 0:00:15]}
c3+ {[%emt 0:00:10]} 52. Kc2 {[%emt 0:00:18]} Ke3 {[%emt 0:00:25]} 53. Kxc3 {
[%emt 0:00:11]} Kxf3 {[%emt 0:00:11]} 54. Kd3 {[%emt 0:00:12]} Kf4 {[%emt 0:00:
00]} 55. Ke2 {[%emt 0:00:12]} Kxe4 {[%emt 0:00:17]} 56. Kf2 {[%emt 0:00:14]}
Kd3 {[%emt 0:01:39]} 57. Ke1 {[%emt 0:00:24]} Ke3 {[%emt 0:00:49]} 58. Kf1 {
[%emt 0:00:19]} Kd2 {[%emt 0:00:16]} 59. Kf2 {[%emt 0:00:12]} e4 {[%emt 0:00:
00]} 60. Kf1 {[%emt 0:00:16]} e3 {[%emt 0:00:12]} 61. Kg2 {[%emt 0:00:13]} e2 {
[%emt 0:00:48]} 62. Kh2 {[%emt 0:00:12]} e1=Q {[%emt 0:00:42]} 63. Kg2 {
[%emt 0:00:19]} Qg3+ {[%emt 0:00:30]} 64. Kh1 {[%emt 0:00:14]} Qxh3+ {[%emt 0:
00:00]} 0-1

[Event "44th Chess Olympiad Women 2022"]
[Site "Chennai"]
[Date "2022.08.07"]
[Round "9.44"]
[White "Munoz Santana, Doribel"]
[Black "Li, Joy Ching"]
[Result "1/2-1/2"]
[WhiteElo "1851"]
[BlackElo "1386"]
[Annotator "NA RC"]
[PlyCount "117"]
[EventDate "2022.??.??"]
[TimeControl "60"]

1. d4 {[%emt 0:00:04]} Nf6 {[%emt 0:00:06]} 2. Nf3 {[%emt 0:00:07]} g6 {
[%emt 0:00:08]} 3. g3 {[%emt 0:00:06]} Bg7 {[%emt 0:00:10]} 4. Bg2 {[%emt 0:00:
00]} O-O {[%emt 0:00:18]} 5. O-O {[%emt 0:00:05]} d5 {[%emt 0:00:18]} 6. b3 {
[%emt 0:00:04]} c5 {[%emt 0:01:19]} 7. e3 {[%emt 0:00:16]} Ne4 {[%emt 0:01:18]}
8. Bb2 {[%emt 0:00:08]} Nc6 {[%emt 0:01:13]} 9. Nbd2 {[%emt 0:00:20]} Bg4 {
[%emt 0:07:22]} 10. h3 {[%emt 0:00:25]} Bf5 {[%emt 0:00:36]} 11. g4 {[%emt 0:
00:00]} Nxd2 {[%emt 0:02:09]} 12. Nxd2 {[%emt 0:01:17]} Be6 {[%emt 0:01:13]}
13. Nf3 {[%emt 0:02:08]} h6 {[%emt 0:02:25]} 14. Rb1 {[%emt 0:02:09]} b6 {
[%emt 0:03:41]} 15. dxc5 {[%emt 0:03:11]} bxc5 {[%emt 0:01:48]} 16. Bxg7 {
[%emt 0:00:45]} Kxg7 {[%emt 0:00:45]} 17. Qd2 {[%emt 0:07:50]} Qa5 {[%emt 0:00:
00]} 18. Qxa5 {[%emt 0:00:00]} Nxa5 {[%emt 0:00:15]} 19. Ne5 {[%emt 0:00:00]}
Rac8 {[%emt 0:09:40]} 20. Rbd1 {[%emt 0:00:00]} Rfd8 {[%emt 0:10:57]} 21. Rd2 {
[%emt 0:01:35]} Nc6 {[%emt 0:07:01]} 22. Nxc6 {[%emt 0:04:38]} Rxc6 {[%emt 0:
00:00]} 23. c4 {[%emt 0:01:27]} Rcd6 {[%emt 0:01:42]} 24. cxd5 {[%emt 0:03:38]}
Bxd5 {[%emt 0:01:08]} 25. Rc2 {[%emt 0:06:39]} Bxg2 {[%emt 0:02:01]} 26. Kxg2 {
[%emt 0:00:02]} Ra6 {[%emt 0:01:20]} 27. Rfc1 {[%emt 0:02:06]} e6 {[%emt 0:00:
00]} 28. Rb2 {[%emt 0:01:32]} Ra5 {[%emt 0:04:54]} 29. Kf3 {[%emt 0:01:42]} Kf6
{[%emt 0:01:37]} 30. h4 {[%emt 0:02:21]} g5 {[%emt 0:04:18]} 31. h5 {[%emt 0:
00:00]} Ke5 {[%emt 0:02:12]} 32. Ke2 {[%emt 0:03:30]} Rd5 {[%emt 0:01:44]} 33.
Rc4 {[%emt 0:00:46]} Kd6 {[%emt 0:01:39]} 34. f4 {[%emt 0:01:38]} f6 {[%emt 0:
00:00]} 35. Rbc2 {[%emt 0:11:18]} Rb5 {[%emt 0:03:38]} 36. Ra4 {[%emt 0:01:27]}
a5 {[%emt 0:02:20]} 37. Rcc4 {[%emt 0:00:57]} e5 {[%emt 0:01:10]} 38. fxg5 {
[%emt 0:04:47]} fxg5 {[%emt 0:00:56]} 39. Rc1 {[%emt 0:00:05]} Ke6 {[%emt 0:00:
00]} 40. Rf1 {[%emt 0:00:04]} Rd8 {[%emt 0:00:43]} 41. Rf5 {[%emt 0:30:22]} Rb4
{[%emt 0:32:58]} 42. Rxa5 {[%emt 0:00:15]} Rxg4 {[%emt 0:00:19]} 43. Rf2 {
[%emt 0:00:41]} c4 {[%emt 0:06:10]} 44. bxc4 {[%emt 0:02:49]} Rxc4 {[%emt 0:00:
00]} 45. Ra6+ {[%emt 0:00:09]} Kd5 {[%emt 0:00:00]} 46. Rxh6 {[%emt 0:00:00]}
Rh4 {[%emt 0:00:00]} 47. Rg2 {[%emt 0:00:00]} Ke4 {[%emt 0:00:00]} 48. Rb6 {
[%emt 0:00:00]} Rxh5 {[%emt 0:00:00]} 49. Rb4+ {[%emt 0:00:00]} Kd5 {[%emt 0:
00:00]} 50. Kf3 {[%emt 0:00:00]} Rf8+ {[%emt 0:00:00]} 51. Ke2 {[%emt 0:00:00]}
Ra8 {[%emt 0:00:00]} 52. Rb2 {[%emt 0:02:26]} Rh4 {[%emt 0:00:00]} 53. Rd2+ {
[%emt 0:09:04]} Ke4 {[%emt 0:00:00]} 54. Rb2 {[%emt 0:08:33]} Ra3 {[%emt 0:00:
00]} 55. Rb4+ {[%emt 0:00:38]} Kd5 {[%emt 0:00:00]} 56. Rb5+ {[%emt 0:02:32]}
Ke4 {[%emt 0:00:00]} 57. Rb4+ {[%emt 0:00:08]} Kd5 {[%emt 0:00:00]} 58. Rb5+ {
[%emt 0:00:05]} Ke4 {[%emt 0:00:00]} 59. Rb4+ {[%emt 0:00:07]} 1/2-1/2

[Event "44th Chess Olympiad Women 2022"]
[Site "Chennai"]
[Date "2022.08.07"]
[Round "9.44"]
[White "Rosario Almanzar, Raydily"]
[Black "Kannappan, Sigappi"]
[Result "1/2-1/2"]
[WhiteElo "1882"]
[BlackElo "1914"]
[Annotator "NA"]
[PlyCount "73"]
[EventDate "2022.??.??"]
[TimeControl "60"]

1. d4 {[%emt 0:00:55]} Nf6 {[%emt 0:00:06]} 2. c4 {[%emt 0:00:03]} g6 {[%emt 0:
00:00]} 3. Nc3 {[%emt 0:00:03]} Bg7 {[%emt 0:00:05]} 4. e4 {[%emt 0:00:15]} d6
{[%emt 0:00:04]} 5. Be2 {[%emt 0:00:15]} O-O {[%emt 0:00:20]} 6. h4 {[%emt 0:
00:00]} h5 {[%emt 0:06:14]} 7. Bg5 {[%emt 0:01:07]} Nbd7 {[%emt 0:06:39]} 8.
Qd2 {[%emt 0:05:45]} c5 {[%emt 0:04:41]} 9. d5 {[%emt 0:00:48]} a6 {[%emt 0:00:
00]} 10. f3 {[%emt 0:02:29]} Rb8 {[%emt 0:03:57]} 11. Nh3 {[%emt 0:02:33]} Ne5
{[%emt 0:06:12]} 12. Nf2 {[%emt 0:07:54]} Bd7 {[%emt 0:07:59]} 13. a4 {[%emt 0:
00:00]} Qe8 {[%emt 0:07:01]} 14. O-O {[%emt 0:05:08]} Qd8 {[%emt 0:07:42]} 15.
Rfc1 {[%emt 0:09:56]} Re8 {[%emt 0:06:19]} 16. b3 {[%emt 0:02:17]} Qa5 {
[%emt 0:02:35]} 17. Nd3 {[%emt 0:04:02]} Nh7 {[%emt 0:01:01]} 18. Be3 {[%emt 0:
00:00]} Nxd3 {[%emt 0:01:57]} 19. Qxd3 {[%emt 0:06:30]} Bf6 {[%emt 0:02:59]}
20. Bf2 {[%emt 0:01:25]} Rec8 {[%emt 0:00:37]} 21. Ra2 {[%emt 0:08:42]} Qd8 {
[%emt 0:00:35]} 22. Re1 {[%emt 0:05:13]} Qf8 {[%emt 0:00:30]} 23. Bf1 {[%emt 0:
00:00]} Qg7 {[%emt 0:00:28]} 24. Rc2 {[%emt 0:02:38]} g5 {[%emt 0:00:40]} 25.
hxg5 {[%emt 0:01:53]} Nxg5 {[%emt 0:00:56]} 26. Kh1 {[%emt 0:01:20]} Be5 {
[%emt 0:00:55]} 27. Ne2 {[%emt 0:01:27]} Qg6 {[%emt 0:10:07]} 28. Qe3 {[%emt 0:
00:00]} Bg7 {[%emt 0:03:30]} 29. Bh4 {[%emt 0:01:06]} Bh6 {[%emt 0:00:25]} 30.
Nf4 {[%emt 0:00:32]} Qh7 {[%emt 0:01:19]} 31. Bd3 {[%emt 0:00:25]} f5 {[%emt 0:
00:00]} 32. exf5 {[%emt 0:00:34]} Bxf5 {[%emt 0:00:08]} 33. Bxg5 {[%emt 0:00:
00]} Bxg5 {[%emt 0:00:24]} 34. Bxf5 {[%emt 0:00:09]} Qxf5 {[%emt 0:00:06]} 35.
Qe6+ {[%emt 0:00:13]} Qxe6 {[%emt 0:01:25]} 36. Nxe6 {[%emt 0:00:08]} Bf6 {
[%emt 0:00:46]} 37. Nf4 {[%emt 0:00:26]} 1/2-1/2